Cogmind - Beta 16 @@@ ROGUE MODE // 2025.12.31 @ 14:48:13 Player: FrigidRock Result: Destroyed by V3-QRO(R) with Subdweller Laser Performance ------------- Evolutions (0) 0 Regions Visited (2) 400 Robots Destroyed (31) 155 Value Destroyed (935) 935 Prototype IDs (15) 300 Alien Tech Used (0) 0 Bonus (0) 0 TOTAL SCORE: 1790 Bonus ------- None Cogmind --------- Core Integrity 0/250 Matter 105/300 Energy 64/100 System Corruption 0% Temperature Cool (6) Movement Core (450) Ox8 Location -10/Subcaves Parts ------- > --- POWER (1) -------- (None) > --- PROPULSION (2) --- (None) > --- UTILITY (2) ------ Large Storage Unit Core Shielding > --- WEAPON (2) ------- Beam Cannon Beam Cannon > --- INVENTORY (15) --- Heavy Ion Engine Heavy Ion Engine Aluminum Leg Subdweller Monowheel Heat Sink Large Matter Pod (150) Improved Terrain Scanner Makeshift Kinetic Plating Tower Shield Shotgun Shotgun Subdweller Shrapnel Launcher Datajack Peak State ------------ > --- POWER ------------ Heavy Ion Engine > --- PROPULSION ------- Light Treads > --- UTILITY ---------- Large Storage Unit Improved Terrain Scanner > --- WEAPON ----------- Beam Cannon Barrage Gun > --- INVENTORY -------- Heavy Ion Engine Heavy Ion Engine Aluminum Leg Subdweller Monowheel Heat Sink Large Matter Pod Core Shielding Makeshift Kinetic Plating Tower Shield Beam Cannon Shotgun Shotgun Datajack [Rating: 16] Favorites ----------- Power Heavy Ion Engine Engine Heavy Ion Engine Propulsion Light Treads Treads Light Treads Utility Large Storage Unit Device Improved Terrain Scanner Storage Large Storage Unit Processor Targeting Computer Protection Light Armor Plating Weapon Shotgun Energy Cannon Beam Cannon Ballistic Gun Shotgun Launcher Subdweller Shrapnel Launcher Build | -11 -10 -10 ------- Run | Yrd Mat Sub Slots Evolved . | . . . Power . | . . . Propulsion . | . . . Utility . | . . . Weapon . | . . . Parts Attached 25 | 7 10 8 Power 2 | 1 1 . Engine 2 | 1 1 . Core . | . . . Reactor . | . . . Propulsion 4 | 2 2 . Treads 4 | 2 2 . Leg . | . . . Wheel . | . . . Hover . | . . . Flight . | . . . Utility 9 | 2 5 2 Device 2 | 1 1 . Storage 3 | 1 2 . Processor 2 | . 1 1 Hackware . | . . . Protection 2 | . 1 1 Artifact . | . . . Weapon 10 | 2 2 6 Energy Gun . | . . . Energy Cannon 2 | . . 2 Ballistic Gun 7 | 2 2 3 Ballistic Cannon . | . . . Launcher 1 | . . 1 Special Weapon . | . . . Impact Weapon . | . . . Slashing Weapon . | . . . Piercing Weapon . | . . . Special Melee Weapon . | . . . Unidentified Prototypes 1 | . 1 . Parts Lost 9 | . 1 8 Power 1 | . . 1 Propulsion 3 | . . 3 Utility 2 | . 1 1 Weapon 3 | . . 3 Highest Loss Streak 3 | . 1 3 To Critical Strikes . | . . . Average Backups 12 | 2 9 13 Power 2 | . 1 2 Propulsion 1 | 1 2 1 Utility 3 | . 1 4 Weapon 3 | . 3 3 Tool/Special . | . . . Unused Backups 14 | . 4 10 Power 5 | . 2 3 Propulsion 3 | . 1 2 Utility 4 | . . 4 Weapon 1 | . 1 . Tool/Special 1 | . . 1 Average Slot Usage (%) 98 | . 99 97 Engine 13 | . 14 13 Treads 26 | . 28 26 Device 8 | . 1 11 Storage 14 | . 14 14 Processor 2 | . 4 1 Protection 3 | . 7 1 Ballistic Gun 26 | . 27 26 Peak Build Rating 16 | 9 14 16 Average Rating 13 | 5 12 14 On Entrance 7 | . 9 13 Avg Prop Armor Cover (%) 19 | . . 19 Naked Turns . | . . . Heaviest Build 40 | 15 37 40 Greatest Support 40 | 40 40 40 Greatest Overweight (x) 11 | 4 . 11 Average Overweight (x) 2 | 1 . 4 Largest Inventory Capacity 15 | 8 15 15 Average Capacity 13 | 7 11 15 Most Carried 15 | 4 13 15 Average Carried 13 | 2 9 14 Final Capacity 15 | 8 15 15 Final Carried 14 | 4 13 14 Class Distribution -------------------- 100% | Mutant Dominant Class ---------------- Mutant | -10/Materials Mutant | -10/Subcaves Resources | -11 -10 -10 ----------- Run | Yrd Mat Sub Matter Collected 1124 | 268 541 315 Remotely . | . . . Salvage Created 928 | 20 523 385 Parts 50 | 2 27 21 Haulers Intercepted 1 | . 1 . Recyclers Shooed 1 | . 1 . Parts Field Recycled . | . . . Retrieved Matter . | . . . Parts Self-Destructed 6 | . . 6 Prevented 1 | . . 1 Parts Restored . | . . . Kills | -11 -10 -10 ------- Run | Yrd Mat Sub Combat Hostiles Destroyed 26 | . 14 12 Guns 23 | . 14 9 Cannons 1 | . . 1 AOE 2 | . . 2 Classes Destroyed 7 | 1 4 2 Tunneler 1 | 1 . . Hauler 1 | . 1 . Turret 2 | . . 2 Watcher 1 | . 1 . Swarmer 5 | . 3 2 Grunt 11 | . 11 . Subdweller 10 | . . 10 Best Kill Streak 4 | 1 4 4 Combat Bots Only 4 | . 4 2 Max Kills in Single Turn 1 | 1 1 1 Gunslinging . | . . . Exploded 1 | . . 1 Melee . | . . . Uniques/NPCs Destroyed . | . . . Combat | -11 -10 -10 -------- Run | Yrd Mat Sub Hostile Shots Fired 115 | . 46 69 Missed 27 | . 11 16 Hits 88 | . 35 53 Projectile 88 | . 35 53 Critical Strikes 1 | . 1 . Damage Taken 1430 | . 388 1042 Core 254 | . 61 193 Absorbed by Shields . | . . . Redirected to Shielding 37 | . . 37 Core Remaining (%) 100 | 100 . . Volleys Fired 94 | 1 41 52 Largest 2 | 2 2 2 Hottest 120 | 40 46 120 Shots Fired 166 | 2 82 82 Gun 144 | 2 82 60 Cannon 16 | . . 16 Launcher 6 | . . 6 Special . | . . . Kinetic 150 | 2 82 66 Thermal 16 | . . 16 Explosive . | . . . Electromagnetic . | . . . Robot Hit Streak 18 | 1 9 18 Robot Miss Streak 9 | . 9 4 Penetration Max . | . . . Secondary Targets 1 | . 1 . Max Gunslinging Chain 1 | . 1 . Shots Hit Robots 114 | 1 59 54 Core Hits 70 | 1 34 35 Critical Kills . | . . . Critical Parts Destroyed 1 | . 1 . Critical Strikes 2 | . 1 1 Destroy 2 | . 1 1 Melee Attacks . | . . . Impact . | . . . Slashing . | . . . Piercing . | . . . Sneak Attacks . | . . . Combat Hostiles . | . . . Follow-up Attacks . | . . . Damage Inflicted 2112 | 24 853 1235 Guns 1688 | 24 853 811 Cannons 122 | . . 122 Explosions 302 | . . 302 Melee . | . . . Ramming . | . . . Kinetic 1990 | 24 853 1113 Thermal 122 | . . 122 Explosive . | . . . Electromagnetic . | . . . Impact . | . . . Slashing . | . . . Piercing . | . . . Highest Corruption . | . . . Average Corruption . | . . . Corruption Purged . | . . . Corruption Blocked . | . . . Overload Shots . | . . . Overflow Damage . | . . . Projectiles . | . . . Explosions . | . . . Melee . | . . . Knockbacks . | . . . Impact . | . . . Kinetic . | . . . Secondary . | . . . Self-Inflicted Damage 37 | . . 37 Shots 2 | . . 2 Rammed . | . . . Targets Rammed . | . . . Kicked . | . . . Crushed . | . . . Highest Temperature 26 | . 26 16 Average Temperature 8 | . 8 10 Received Heat Transfer 432 | . 213 219 Siege Activations . | . . . Martial Activations . | . . . Shielding Activations . | . . . Robots Disrupted . | . . . Combat Hostiles . | . . . Robots Corrupted . | . . . Combat Hostiles . | . . . Parts Fried . | . . . Impact Corruptions . | . . . Robots Melted . | . . . Combat Hostiles . | . . . Parts Melted . | . . . Heat Transferred 259 | . . 259 Parts Sabotaged . | . . . Parts Stolen . | . . . Parts Stripped . | . . . Power Chain Reactions . | . . . Alert | -11 -10 -10 ------- Run | Yrd Mat Sub Maximum Alert Level . | . . . Low Security (%) 100 | 100 100 . Level 1 . | . . . Level 2 . | . . . Level 3 . | . . . Level 4 . | . . . Level 5 . | . . . High Security . | . . . Max Security . | . . . Peak Influence 132 | 5 132 . Initial . | . . . Average 34 | . 36 . Influence Increases 512 | 5 412 95 Destroy 0b10 Robot/C 360 | . 280 80 Destroy 0b10 Robot/NC 15 | 5 10 . Destroy Leader 64 | . 64 . Successful Hack 13 | . 13 . Select Force Hacks 30 | . 30 . Lose Combat Pursuer 30 | . 15 15 Influence Decreases 479 | 5 412 62 Time Decay 429 | 5 402 22 Lost Part 50 | . 10 40 Squads Dispatched 4 | . 4 . Investigation 3 | . 3 . Extermination . | . . . Reinforcement 1 | . 1 . Assault . | . . . Garrison . | . . . Intercept . | . . . Searches Triggered . | . . . Construction Impeded . | . . . Haulers Reinforced . | . . . Active Scanning Responses . | . . . Cargo Convoy Interrupts . | . . . Stealth | -11 -10 -10 --------- Run | Yrd Mat Sub Distress Signals 2 | . 2 . Communications Jammed . | . . . Distress Signals . | . . . Times Spotted 43 | . 27 16 Peak Tracking Total 4 | . 4 3 Tactical Retreats 2 | . 1 1 Traps | -11 -10 -10 ------- Run | Yrd Mat Sub Traps Triggered 1 | . 1 . Indirectly . | . . . Trap Hack Attempts . | . . . Triggered . | . . . Disarmed . | . . . Reprogrammed . | . . . Reused . | . . . Traps Extracted . | . . . Installed 1 | . . 1 Triggered . | . . . Machines | -11 -10 -10 ---------- Run | Yrd Mat Sub Machines Disabled 5 | . . 5 Max in Single Turn 2 | . . 2 Machines Repaired . | . . . Machines Dismantled . | . . . Machines Sabotaged . | . . . Overloaded Fab Kills . | . . . Hacking | -11 -10 -10 --------- Run | Yrd Mat Sub Machines Accessed 8 | . 7 1 Terminals 5 | . 5 . Fabricators . | . . . Repair Stations . | . . . Recycling Units 2 | . 2 . Scanalyzers . | . . . Garrison Access . | . . . Total Hacks 26 | . 25 1 Successful 12 | . 11 1 Failed 14 | . 14 . Catastrophic 1 | . 1 . Database Lockouts . | . . . Manual 22 | . 22 . Terminals 20 | . 20 . Fabricators . | . . . Repair Stations . | . . . Recycling Units 5 | . 5 . Scanalyzers . | . . . Garrison Access . | . . . Terminal Hacks 3 | . 2 1 Robot Analysis 1 | . 1 . Prototype ID Bank 1 | . 1 . Proto ID Catalog 1 | . . 1 Fabricator Hacks . | . . . Repair Station Hacks . | . . . Recycling Unit Hacks . | . . . Scanalyzer . | . . . Garrison Access Hacks . | . . . Unauthorized Hacks 9 | . 9 . Terminals 8 | . 8 . Botnet 2 | . 2 . Operators 1 | . 1 . Skim 5 | . 5 . Fabricators . | . . . Repair Stations . | . . . Recycling Units 1 | . 1 . Tunnel 1 | . 1 . Scanalyzers . | . . . Garrison Access . | . . . Data Cores Recovered . | . . . Used . | . . . Hacking Detections 6 | . 6 . Full Trace Events 1 | . 1 . Feedback Events . | . . . Feedback Blocked . | . . . Robot Schematics Acquired . | . . . Robots Built . | . . . Authchips . | . . . Time . | . . . Total Robot Build Rating . | . . . Part Schematics Acquired . | . . . Parts Built . | . . . Authchips . | . . . Time . | . . . Total Part Build Rating . | . . . Part Studies Acquired . | . . . Parts Repaired . | . . . Time . | . . . Parts Recycled . | . . . Recycled Matter . | . . . Retrieved Matter . | . . . Retrieved Components . | . . . Parts Scanalyzed . | . . . Part Schematics Acquired . | . . . Parts Damaged . | . . . Bothacking | -11 -10 -10 ------------ Run | Yrd Mat Sub Used RIF Installer . | . . . Robots Hacked . | . . . Non-combat . | . . . Combat . | . . . Robot Hacks Applied . | . . . Relay Couplers Released . | . . . Fabnet Peak Effective % . | . . . Robots Rewired . | . . . Allies Hacked . | . . . Hacks Repelled . | . . . Allies | -11 -10 -10 -------- Run | Yrd Mat Sub Total Allies . | . . . Largest Group . | . . . Highest-Rated Group . | . . . Highest-Rated Ally . | . . . Total Orders . | . . . Ally Attacks . | . . . Total Damage . | . . . Kills . | . . . Allies Corrupted . | . . . Allies Melted . | . . . Intel | -11 -10 -10 ------- Run | Yrd Mat Sub Active Infowar (turns) 3670 | 19 243 3408 Terrain 3373 | 19 243 3111 Machine Analysis 297 | . . 297 Robot Analysis Total 1 | . 1 . Derelict Logs Recovered 1 | . . 1 Drone Launches . | . . . Drone Recoveries . | . . . Exploration | -11 -10 -10 ------------- Run | Yrd Mat Sub Turns Passed 5832 | 76 1821 3935 Spaces Moved 1600 | 36 635 929 Core 369 | 17 . 352 Treads 1231 | 19 635 577 Legs . | . . . Wheels . | . . . Hover . | . . . Flight . | . . . Fastest Speed 50 | 50 160 160 Average Speed 266 | 165 160 342 Slowest Speed 600 | 250 160 600 Overloaded Moves . | . . . Propulsion Burnouts . | . . . Robots Hopped . | . . . Potential Cave-ins . | . . . Cave-ins Triggered . | . . . Exploration Rate (%) 46 | 3 87 48 Regions Visited 2 Branch Regions 1 Pre-discovered Areas 2 | . 1 1 Known Exits Taken . | . . . Unknown Exits Taken 2 | 1 1 . Scrap Searched 4 | . . 4 Spaces Dug 30 | . . 30 Terrain Destroyed 59 | . . 59 Melee . | . . . Projectile . | . . . AOE 59 | . . 59 Terrain Rammed . | . . . Walls Destroyed . | . . . Machines Disabled . | . . . Actions | -11 -10 -10 --------- Run | Yrd Mat Sub Total 3007 | 47 1361 1599 Wait 1241 | . 650 591 Move 1598 | 35 634 929 Hop . | . . . Pick Up 22 | 4 10 8 Fast Attach 15 | 7 6 2 Attach 6 | . 1 5 Detach 5 | . 4 1 Swap 11 | . 5 6 Drop 14 | . 10 4 Fire 94 | 1 41 52 Melee . | . . . Ram . | . . . Kick . | . . . Crush . | . . . Escape Stasis . | . . . Rewire . | . . . Trap 1 | . . 1 Miscellaneous . | . . . Route ------- -11/Scrapyard -10/Materials (discovered 5 exits: *Mat x3 / [*Min] / *Sub) -10/Subcaves (discovered 3 exits: *Mat x2 / [*Rec]) History --------- Turn | Location | Event 17 | -11/Scrapyard | Discovered new exit (range 16) 77 | -11/Scrapyard | Entered Materials 263 | -10/Materials | Discovered new exit (range 16) 302 | -10/Materials | Build established: Mutant 405 | -10/Materials | Discovered new exit (range 16) 788 | -10/Materials | Discovered new exit (range 5) 811 | -10/Materials | Discovered new exit (range 16) 1348 | -10/Materials | Learned Storage stockpile data 1452 | -10/Materials | Learned Materials emergency access door positions 1521 | -10/Materials | Identified exit to Materials 1572 | -10/Materials | Learned Storage stockpile data 1602 | -10/Materials | Learned location of 2 exits from Mines 1898 | -10/Materials | Entered Subcaves 1899 | -10/Subcaves | Approached by a straggling Scientist 1899 | -10/Subcaves | Identified exit to Materials 2003 | -10/Subcaves | Learned location of Zion (-6) 2227 | -10/Subcaves | Shifting Twisted Machinery released Shrapnel Trap 2367 | -10/Subcaves | Disturbed a concealed Subdweller 5381 | -10/Subcaves | Core integrity fell below 50% 5384 | -10/Subcaves | Discovered new exit (range 13) 5571 | -10/Subcaves | Visited 4L-MR0's lab 5631 | -10/Subcaves | Found Tower Shield 5816 | -10/Subcaves | Core integrity fell below 20% 5833 | -10/Subcaves | Destroyed by V3-QRO(R) with Subdweller Laser Last Messages --------------- 05596_ 4L-MR0 mumbles: "I'm surprised some of them are even willing to come in here given their fear of my usual visitors." 05599_ Dropped Sub. Shrapnel Launcher. 05600_ Acquired Barrage Gun. 05623_ Testing Chamber breached. 05625_ 4L-MR0 mumbles: "Who knows where that last prototype ended up, probably tossed aside somewhere as if it were useless junk..." 05630_ Dropped Scrap Shield Fragment. 05630_ Dropped Sub. Optics. 05631_ Dropped Sub. Power Source. 05631_ Acquired Tower Shield. 05638_ 4L-MR0: "Uhh... I didn't see nothing, but you'd better hope DW-4LL doesn't find out you took that." 05654_ Subatomizers dissect the Sub. Shrapnel Launcher. 05673_ Acquired Sub. Shrapnel Launcher. 05791_ Acquired 15 matter. 05817_ Lgt. Treads destroyed. 05824_ RG-BYJ(R) destroyed. 05825_ Barrage Gun destroyed. 05829_ Hvy. Ion Engine destroyed. Map ----- +----------------------------------------------------+ | ????????????????????????????????????????#??## #?? | | ?????????????????????????????????#???##????# ### | | ???????????????????????????????#??#????###?## ## | | ????????????????????????????????#?###??#???# ##? | | ???????????????????????????????#???##?#??#?## ##? | | ???????????????????????????????#???#??#?##??# ## | | ????????????????????????????????#?#????###### # | | ??????????????????????????????#?#?##??#??##"" | | ????????????????????????????????#??#??#???#" | | ???????????????????????????????#?##???#??## | | ???????????????????????????????????#??#?## | | ?????????????????????????????#?#??##?#??# | | ??????????????????????????????#?#??#??#?# | | ???????????????????????????????# ?????## | | ???????????????????????????????????#?# # | | ????????????????????????????????? ?# ## | | ?????????????????????????????? ?? ?## ## | | ????????????????????????????????? ?" ?# | | ??????????????????????????????### ? "?# | | ??????????????????????????????# ? <"?## | | ????????????????????????#####?# ##? "??# | | ??????????????????????### ### #?### ??# | | ??????????????????##### ## ##??#?? ### | | ??????????????????? % #?# ###??" ?" " ## | | ?????????????????????# ??# ##?#?###### ## | | ??????????????????????# @#??## #?#?### ## | | ????????????? ?????#R%##### ##### ## | | ?????????? ## !### ## ## | | ???????????? "% % | | ?????????????""" # ] | | ???????